bitfinex/quotes_ETHUSD_20251107
["timestamp","ask_amount","ask_price","bid_price","bid_amount"]
[1762554231405,0.002,3460.1,3460.0,26.3079485]
[1762554231903,0.002,3460.1,3460.0,25.5673895]
[1762554232409,0.002,3460.1,3460.0,25.4250125]
[1762554233303,0.002,3460.1,3460.0,29.5192725]
[1762554233909,0.002,3460.1,3460.0,28.1285875]
[1762554234118,0.002,3460.1,3460.0,27.8705875]
[1762554234411,0.002,3460.1,3460.0,29.3888005]
[1762554234706,0.002,3460.1,3460.0,28.6682775]
[1762554235272,0.002,3460.1,3460.0,29.3888005]
[1762554235813,0.002,3460.1,3460.0,29.5731005]
[1762554236314,0.002,3460.1,3460.0,27.9781835]
[1762554237027,0.002,3460.1,3460.0,27.0715755]
[1762554237233,0.9307,3460.1,3460.0,16.7859735]
[1762554237535,0.9307,3460.1,3460.0,14.14673066]
[1762554238502,1.336204,3460.1,3460.0,9.39724525]
[1762554238826,1.336204,3460.1,3460.0,13.14988541]
[1762554241540,1.4842244,3460.1,3460.0,10.259712]
[1762554242733,1.4842244,3460.1,3460.0,13.14988541]
[1762554243699,1.4842244,3460.1,3460.0,10.259712]
[1762554243940,1.4842244,3460.1,3460.0,13.14988541]
[1762554244735,1.4842244,3460.1,3460.0,10.259712]
[1762554245703,1.4842244,3460.1,3460.0,13.14988541]
[1762554246436,1.336204,3460.1,3460.0,13.14988541]
[1762554251234,1.336204,3460.1,3460.0,13.64988541]
[1762554251541,1.336204,3460.1,3460.0,4.64988541]
[1762554252100,1.336204,3460.1,3460.0,1.759712]
[1762554252302,1.336204,3460.1,3460.0,0.5]
[1762554252618,1.336204,3460.1,3459.9,0.001]
[1762554252619,2.89017341,3460.0,3459.9,0.001]
[1762554252950,3.29614646,3459.5,3458.9,0.001]
[1762554253108,0.905004,3459.0,3458.9,2.89207933]
[1762554253304,0.905004,3459.0,3458.9,4.15179133]
[1762554253610,1.384604,3459.0,3458.9,4.15179133]
[1762554254113,1.384604,3459.0,3458.9,2.89207933]
[1762554256261,1.384604,3459.0,3458.9,0.001]
[1762554256437,1.84105624,3459.0,3458.9,0.001]
[1762554256764,1.384604,3459.0,3458.9,0.001]
[1762554258025,1.384604,3459.0,3458.9,2.89209254]
[1762554258627,1.384604,3459.0,3458.9,0.001]
[1762554259225,4.27561296,3459.0,3458.9,0.001]
[1762554259427,2.13015241,3459.0,3458.9,0.001]
[1762554259651,2.1012497,3459.0,3458.9,0.001]
[1762554260466,1.384604,3459.0,3458.9,0.001]
[1762554261729,4.30451567,3459.0,3458.9,0.001]
[1762554261933,4.27561296,3459.0,3458.9,0.001]
[1762554262240,1.384604,3459.0,3458.9,0.001]
[1762554264760,1.384604,3459.0,3458.9,2.89209254]
[1762554265365,0.6435,3459.0,3458.9,2.89209254]
[1762554265955,1.049004,3459.0,3458.9,2.89209254]
[1762554269265,0.549504,3459.0,3458.9,3.07939254]
[1762554269479,1.384604,3459.0,3458.9,4.45379032]
[1762554275407,1.384604,3459.0,3458.9,1.56269778]
[1762554275567,1.528604,3459.0,3458.9,4.45379032]
[1762554276705,0.405504,3459.0,3458.9,4.45379032]
[1762554276904,0.405504,3459.0,3458.9,5.41664137]
[1762554281486,0.405504,3459.0,3458.9,15.48571337]
[1762554281739,0.405504,3459.0,3458.9,15.75999337]
[1762554283397,0.405504,3459.0,3458.9,8.11491737]
[1762554284924,0.405504,3459.0,3458.9,5.22934137]
[1762554285126,0.405504,3459.0,3458.9,4.45379032]
[1762554285426,0.405504,3459.0,3458.9,7.68611332]
[1762554285656,0.405504,3459.0,3458.9,7.40274532]
[1762554285857,0.405504,3459.0,3458.9,7.15174532]
[1762554286016,0.405504,3459.0,3458.9,4.64109032]
[1762554286350,0.405504,3459.0,3458.9,4.45379032]
[1762554288754,0.877104,3459.0,3458.9,4.45379032]
[1762554289320,1.327504,3459.0,3458.9,1.56269778]
[1762554289535,1.327504,3459.0,3458.9,4.45379032]
[1762554289946,1.4748544,3459.0,3458.9,1.56269778]
[1762554290648,1.4748544,3459.0,3458.9,1.260712]
[1762554291227,1.327504,3459.0,3458.9,1.260712]
[1762554291838,1.327504,3459.0,3458.9,4.15180454]
[1762554292351,1.327504,3459.0,3458.9,1.260712]
[1762554292661,1.327504,3459.0,3458.9,4.15180454]
[1762554298560,0.877104,3459.0,3458.9,4.15180454]
[1762554298758,1.327504,3459.0,3458.9,1.260712]
[1762554299177,1.7495346,3459.0,3458.9,1.260712]
[1762554299378,1.327504,3459.0,3458.9,1.260712]
[1762554299675,1.327504,3459.0,3458.9,4.15180454]
[1762554299871,1.327504,3459.0,3458.9,1.260712]
[1762554300697,4.21851296,3459.0,3458.9,0.001]
[1762554300890,4.96144926,3459.0,3458.9,0.001]
[1762554301389,2.04153759,3459.0,3458.9,0.001]
[1762554302073,1.327504,3459.0,3458.9,0.001]
[1762554303593,1.327504,3459.0,3458.9,2.89209254]
[1762554304693,0.4716,3459.0,3458.9,2.89209254]
[1762554305055,0.002,3459.2,3459.1,2.89092538]
[1762554305487,0.887804,3459.2,3459.1,2.89092538]
[1762554305995,0.002,3459.2,3459.1,4.15063738]
[1762554306199,0.002,3459.2,3459.1,4.33793738]
[1762554306359,0.002,3459.2,3459.1,10.89933537]
[1762554306693,0.002,3459.2,3459.1,10.89233537]
[1762554307459,0.002,3459.2,3459.1,12.87150537]
[1762554308411,0.002,3459.2,3459.1,16.26479237]
[1762554308614,0.002,3459.2,3459.1,16.02959037]
[1762554309290,0.002,3459.2,3459.1,12.49468337]
[1762554309492,0.002,3459.2,3459.1,5.06094037]
[1762554309709,0.002,3459.2,3459.1,4.33793738]
[1762554310011,0.002,3459.2,3459.1,4.15063738]
[1762554311717,1.341504,3459.2,3459.1,1.259712]
[1762554315481,3.29645846,3459.1,3458.9,0.001]
[1762554315716,0.885804,3459.0,3458.9,0.001]
[1762554316014,1.339504,3459.0,3458.9,0.001]
[1762554317927,1.339504,3459.0,3458.9,2.89209254]
[1762554318217,1.339504,3459.0,3458.9,1.260712]
[1762554320106,2.89125972,3458.7,3458.6,0.001]
[1762554320288,3.99576643,3458.7,3458.6,0.001]
[1762554320488,4.44946643,3458.7,3458.6,0.001]
[1762554325822,0.405504,3458.4,3458.2,0.001]
[1762554326023,3.80630084,3458.3,3458.2,0.001]
[1762554326454,4.26000084,3458.3,3458.2,0.001]
[1762554327031,1.339504,3458.3,3458.2,0.001]
[1762554327435,4.23109813,3458.3,3458.2,0.001]
[1762554327755,2.05175743,3458.3,3458.2,0.001]
[1762554328279,4.94335156,3458.3,3458.2,0.001]
[1762554328619,2.05175743,3458.3,3458.2,0.001]
[1762554328823,1.59805743,3458.3,3458.2,0.001]
[1762554329058,0.1898,3458.7,3458.4,2.89146956]
[1762554329242,0.6435,3458.7,3458.2,0.1893]
[1762554329433,0.6435,3458.7,3458.3,2.89158244]
[1762554329754,0.002,3459.0,3458.6,0.1883]
[1762554329953,0.002,3459.0,3458.6,3.07958973]
[1762554330148,0.405504,3458.9,3458.6,3.07958973]
[1762554331478,0.4557,3459.0,3458.9,2.89109254]
[1762554331479,0.002,3459.0,3458.9,2.89109254]
[1762554331642,0.002,3459.0,3458.9,3.07939254]
[1762554332147,0.002,3459.0,3458.9,4.33910454]
[1762554332689,0.002,3459.0,3458.9,4.52740454]
[1762554332895,0.002,3459.0,3458.9,5.32898146]
[1762554333038,0.002,3459.0,3458.9,5.44466613]
[1762554333392,0.002,3459.0,3458.9,11.04986213]
[1762554333576,0.002,3459.0,3458.9,14.36435497]
[1762554334081,0.002,3459.0,3458.9,17.07694097]
[1762554334286,0.002,3459.4,3458.9,17.07694097]
[1762554334287,0.002,3459.6,3459.5,4.20030312]
[1762554334443,0.002,3459.6,3459.5,5.24707918]
[1762554334643,0.002,3459.6,3459.5,15.64025018]
[1762554334876,0.002,3459.6,3459.5,19.22073127]
[1762554335190,1e-08,3459.7,3459.6,4.52681957]
[1762554335348,1e-08,3459.7,3459.6,17.98341541]
[1762554335549,1e-08,3459.7,3459.6,18.42172002]
[1762554336073,1e-08,3459.7,3459.6,27.62088602]
[1762554336280,1e-08,3459.7,3459.6,11.90628318]
[1762554336870,1e-08,3459.7,3459.6,10.79327018]
[1762554337077,1e-08,3459.7,3459.6,12.87199718]
[1762554337480,1e-08,3459.7,3459.6,13.28153702]
[1762554338077,1e-08,3459.7,3459.6,23.28287802]
[1762554338980,1e-08,3459.7,3459.6,35.37466402]
[1762554339351,1e-08,3459.7,3459.6,36.93566402]
[1762554341048,1e-08,3459.7,3459.6,6.93566402]
[1762554341253,1e-08,3459.7,3459.6,36.93566402]
[1762554341662,1e-08,3459.7,3459.6,37.05129217]
[1762554341956,1e-08,3459.7,3459.6,37.19529217]
[1762554342986,1e-08,3459.7,3459.6,35.63429217]
[1762554343190,1e-08,3459.7,3459.6,16.70886133]
[1762554344252,0.498,3460.5,3459.8,4.15005248]
[1762554344486,0.498,3460.5,3459.8,9.54338957]
[1762554345071,0.498,3460.5,3459.8,10.04138957]
[1762554345277,0.498,3460.5,3459.8,14.28392257]
[1762554345980,0.498,3460.5,3459.8,14.07392257]
[1762554346180,0.498,3460.5,3459.8,14.26683057]
[1762554346789,0.498,3460.5,3459.8,10.38642357]
[1762554346990,0.496,3460.2,3459.8,4.60619009]
[1762554347317,0.002,3460.5,3459.8,3.48744957]
[1762554347318,0.4885,3459.9,3459.8,3.48744957]
[1762554347485,0.6718,3459.9,3459.8,2.89034048]
[1762554347686,1.1678,3459.9,3459.7,8.99999999]
[1762554348001,1.388004,3459.8,3459.7,8.99999999]
[1762554348208,1.388004,3459.8,3459.7,10.25971199]
[1762554348521,1.388004,3459.8,3459.7,8.99999999]
[1762554348815,1.5455344,3459.8,3459.7,10.25971199]
[1762554349011,1.5455344,3459.8,3459.7,8.99999999]
[1762554349311,1.5455344,3459.8,3459.7,10.25971199]
[1762554352298,0.405504,3459.8,3459.7,13.15013601]
[1762554352508,1.388004,3459.8,3459.7,13.15013601]
[1762554353026,1.388004,3459.8,3459.7,1.259712]
[1762554354343,1.532004,3459.8,3459.7,1.259712]
[1762554356605,1.532004,3459.8,3459.7,4.15013602]
[1762554357737,1.532004,3459.8,3459.7,1.259712]
[1762554358039,1.532004,3459.8,3459.7,4.15013602]
[1762554358608,1.036004,3459.8,3459.7,4.15013602]
[1762554359147,1.532004,3459.8,3459.7,4.15013602]
[1762554360543,0.144,3459.8,3459.7,4.33843602]
[1762554360780,0.9825,3459.8,3459.6,1.259712]
[1762554361063,0.4865,3459.7,3459.6,4.15021957]
[1762554361230,0.1853,3459.9,3459.7,4.15013602]
[1762554361440,1.086804,3459.9,3459.8,4.15005248]
[1762554362168,0.590804,3459.9,3459.8,4.15005248]
[1762554362371,1.064104,3459.9,3459.8,4.15005248]
[1762554363273,0.880804,3459.9,3459.8,4.15005248]
[1762554365861,1.380104,3459.9,3459.8,4.15005248]
[1762554366067,0.407504,3459.9,3459.8,4.15005248]
[1762554366271,1.380104,3459.9,3459.8,4.15005248]
[1762554367775,1.380104,3459.9,3459.8,1.259712]
[1762554367935,1.380104,3459.9,3459.8,4.15005248]
[1762554368354,0.880804,3459.9,3459.8,4.15005248]
[1762554369796,0.407504,3459.9,3459.8,4.15005248]
[1762554370656,0.880804,3459.9,3459.8,4.15005248]
[1762554371056,1.380104,3459.9,3459.8,4.15005248]
[1762554372013,0.880804,3459.9,3459.8,4.15005248]
[1762554372610,0.407504,3459.9,3459.8,4.15005248]
[1762554373784,0.880804,3459.9,3459.8,4.15005248]
[1762554375258,1.380104,3459.9,3459.8,4.15005248]
[1762554381617,0.880804,3459.9,3459.8,4.15005248]
[1762554382785,1.380104,3459.9,3459.8,4.15005248]
[1762554383823,1.380104,3459.9,3459.8,1.259712]
[1762554384027,1.380104,3459.9,3459.8,4.15005248]
[1762554388305,0.407504,3459.9,3459.8,4.15005248]
[1762554389037,0.880804,3459.9,3459.8,4.15005248]
[1762554390340,0.002,3459.9,3459.8,4.33835248]
[1762554390540,0.002,3459.9,3459.8,5.05700043]
[1762554391127,0.002,3459.9,3459.8,22.08069543]
[1762554391327,0.002,3459.9,3459.8,22.14703343]
[1762554391660,0.002,3459.9,3459.8,22.33533343]
[1762554392069,0.002,3459.9,3459.8,5.79884027]
[1762554392250,0.002,3459.9,3459.8,7.61350443]
[1762554392459,0.002,3459.9,3459.8,7.80180443]
[1762554393141,0.002,3459.9,3459.8,10.49102743]
[1762554393343,0.002,3459.9,3459.8,10.09823543]
[1762554394230,0.002,3459.9,3459.8,14.07743743]
[1762554394833,0.002,3459.9,3459.8,11.48867343]
[1762554396146,0.002,3459.9,3459.8,18.76136943]
[1762554396351,0.002,3459.9,3459.8,18.77136943]
[1762554397372,0.002,3459.9,3459.8,18.78177343]
[1762554398260,0.002,3459.9,3459.8,19.16251843]
[1762554398886,0.002,3459.9,3459.8,22.45601842]
[1762554399087,0.002,3459.9,3459.8,31.06052042]
[1762554399403,0.002,3459.9,3459.8,20.90316942]
[1762554399596,0.002,3459.9,3459.8,19.54456942]
[1762554400304,0.002,3459.9,3459.8,23.91280142]
[1762554400609,0.002,3459.9,3459.8,24.51064126]
[1762554400905,0.002,3459.9,3459.8,20.96755042]
[1762554401105,0.002,3459.9,3459.8,20.77925042]
[1762554401298,0.002,3459.9,3459.8,21.38444342]
[1762554401495,0.002,3459.9,3459.8,20.03110142]
[1762554401877,0.002,3459.9,3459.8,19.77005842]
[1762554403007,0.002,3459.9,3459.8,31.23525842]
[1762554403413,0.002,3459.9,3459.8,30.98079142]
[1762554404008,0.002,3459.9,3459.8,26.78405042]
[1762554404312,0.002,3459.9,3459.8,25.19180042]
[1762554404818,1.526604,3459.9,3459.8,9.0]
[1762554405184,4.41686094,3459.9,3459.8,1.29302365]
[1762554405389,4.41686094,3459.9,3459.8,0.99021264]
[1762554405798,0.405504,3459.8,3459.6,0.001]
[1762554406008,0.186,3459.7,3459.6,0.001]
[1762554406387,3.95112802,3459.7,3459.6,0.001]
[1762554406589,3.98003073,3459.7,3459.6,0.001]
[1762554406789,0.405504,3459.5,3459.3,0.001]
[1762554406990,3.81710757,3459.6,3459.3,0.001]
[1762554406991,3.90713984,3459.4,3459.3,0.001]
[1762554407211,1.01646516,3459.4,3459.3,0.001]
[1762554407411,1.063404,3459.4,3459.3,0.001]
[1762554407779,3.95407868,3459.4,3459.3,0.001]
[1762554408914,3.98298139,3459.4,3459.3,0.001]
[1762554411321,3.95407868,3459.4,3459.3,0.001]
[1762554415227,1.063404,3459.4,3459.3,0.001]
[1762554415526,4.34946227,3459.4,3459.3,0.001]
[1762554415730,3.94395827,3459.4,3459.3,0.001]
[1762554415896,4.34946227,3459.4,3459.3,0.001]
[1762554416517,1.45878759,3459.4,3459.3,0.001]
[1762554416709,1.063404,3459.4,3459.3,0.001]
[1762554416931,3.95407868,3459.4,3459.3,0.001]
[1762554417099,1.063404,3459.4,3459.3,0.001]
[1762554417633,0.4692,3459.8,3459.3,0.001]
[1762554417821,0.002,3459.9,3459.3,0.001]
[1762554418020,0.4602,3459.4,3459.3,0.001]
[1762554418236,1.009704,3459.4,3459.3,1.260712]
[1762554418702,1.009704,3459.4,3459.3,2.89175824]
[1762554418893,1.009704,3459.4,3459.3,0.001]
[1762554419332,1.009704,3459.4,3459.3,1.260712]
[1762554419540,1.009704,3459.4,3459.3,2.89175824]
[1762554419734,1.009704,3459.4,3459.3,1.260712]
[1762554419937,1.478904,3459.4,3459.3,0.001]
[1762554420232,1.1577944,3459.4,3459.3,0.001]
[1762554420434,1.6269944,3459.4,3459.3,0.001]
[1762554421139,1.6269944,3459.4,3459.3,2.89175824]
[1762554421140,0.405504,3459.4,3459.3,2.89175824]
[1762554421326,0.405504,3459.4,3459.3,3.36015824]
[1762554422730,0.002,3459.5,3459.4,2.89067468]
[1762554422928,0.002,3459.5,3459.4,5.07718668]
[1762554423241,0.002,3459.5,3459.4,12.34793139]
[1762554423405,0.002,3459.5,3459.4,11.80268839]
[1762554423738,0.002,3459.5,3459.4,10.24168839]
[1762554423927,0.002,3459.5,3459.4,6.20422739]
[1762554424939,0.002,3459.5,3459.4,5.73562739]
[1762554425801,0.865904,3459.5,3459.4,4.15038668]
[1762554426737,0.407504,3459.5,3459.4,4.15038668]
[1762554427522,0.865904,3459.5,3459.4,4.15038668]
[1762554428325,0.407504,3459.5,3459.4,4.15038668]
[1762554428738,1.342004,3459.5,3459.4,4.15038668]
[1762554429262,1.342004,3459.5,3459.4,4.85470205]
[1762554430749,1.342004,3459.5,3459.4,3.59499005]
[1762554430936,0.865904,3459.5,3459.4,3.59499005]
[1762554431136,0.4604,3459.5,3459.4,6.13963505]
[1762554431570,0.9365,3459.5,3459.4,6.13963505]
[1762554432184,0.4604,3459.5,3459.4,10.42609505]
[1762554432731,0.002,3459.5,3459.4,10.57009505]
[1762554433167,0.4604,3459.5,3459.4,10.79438005]
[1762554433764,0.4604,3459.5,3459.4,10.02468005]
[1762554433927,0.4604,3459.5,3459.4,7.52527405]
[1762554434132,0.9365,3459.5,3459.4,6.67269605]
[1762554435080,0.9365,3459.5,3459.4,3.73899005]
[1762554435282,0.9365,3459.5,3459.4,6.57269605]
[1762554435434,0.002,3459.5,3459.4,6.57269605]
[1762554435644,0.9365,3459.5,3459.4,7.08828905]
[1762554435978,0.4604,3459.5,3459.4,7.08828905]
[1762554436300,0.9365,3459.5,3459.4,7.99898905]
[1762554436502,0.4604,3459.5,3459.4,7.99898905]
[1762554436793,0.4604,3459.5,3459.4,7.99998905]
[1762554436965,0.4604,3459.5,3459.4,8.65028905]
[1762554437172,0.4604,3459.5,3459.4,9.10528905]
[1762554438393,0.9365,3459.5,3459.4,7.74028905]
[1762554438700,0.9365,3459.5,3459.4,5.30099005]
[1762554439268,0.9365,3459.5,3459.4,13.86814405]
[1762554439708,0.9365,3459.5,3459.4,13.45184405]
[1762554439897,0.9365,3459.5,3459.4,8.66069005]
[1762554440071,0.9365,3459.5,3459.4,8.46299005]
[1762554440377,0.9365,3459.5,3459.4,3.03567468]
[1762554440999,1.342004,3459.5,3459.4,2.89167468]
[1762554444583,0.865904,3459.5,3459.4,2.89167468]
[1762554444784,0.4604,3459.5,3459.4,8.78608768]
[1762554444987,0.4604,3459.5,3459.4,9.96837286]
[1762554445683,0.002,3459.5,3459.4,4.53215986]
[1762554446005,0.002,3459.5,3459.4,11.92954186]
[1762554446521,0.002,3459.5,3459.4,10.43896986]
[1762554446918,0.002,3459.5,3459.4,13.37222486]
[1762554447776,0.002,3459.5,3459.4,29.27370186]
[1762554448171,0.002,3459.5,3459.4,29.74230186]
[1762554448394,0.002,3459.5,3459.4,21.83759286]
[1762554448809,0.002,3459.5,3459.4,22.58161986]
[1762554449477,0.002,3459.5,3459.4,22.12341986]
[1762554449715,0.4604,3459.5,3459.4,21.37939286]
[1762554449917,0.002,3459.5,3459.4,21.83759286]
[1762554450801,0.002,3459.5,3459.4,34.07522286]
[1762554451928,0.002,3459.5,3459.4,34.67615986]
[1762554454123,0.002,3459.5,3459.4,36.23715986]
[1762554454904,0.002,3459.5,3459.4,45.23715986]
[1762554455246,0.002,3459.5,3459.4,44.77895986]
[1762554455614,0.499,3459.5,3459.4,44.77895986]
[1762554456938,0.002,3459.5,3459.4,44.77895986]
[1762554458934,0.002,3459.5,3459.4,43.21795986]
[1762554459135,0.002,3459.5,3459.4,44.77895986]
[1762554459762,0.499,3459.5,3459.4,43.21795986]
[1762554460059,0.002,3459.5,3459.4,45.27265986]
[1762554460261,0.002,3459.5,3459.4,44.77895986]
[1762554460662,0.499,3459.5,3459.4,44.77895986]
[1762554463236,0.002,3459.5,3459.4,45.27265986]
[1762554463868,0.4593,3459.5,3459.4,44.77895986]
[1762554464964,0.002,3459.5,3459.4,44.77895986]
[1762554465667,0.4593,3459.5,3459.4,39.56977686]
[1762554467483,0.4593,3459.5,3459.4,40.61928486]
[1762554467986,0.4593,3459.5,3459.4,39.57148186]
[1762554468470,0.4593,3459.5,3459.4,39.53166086]
[1762554468674,0.4593,3459.5,3459.4,29.53166086]
[1762554469181,0.9326,3459.5,3459.4,24.52722086]
[1762554469354,1.338104,3459.5,3459.4,22.03793668]
[1762554469679,1.338104,3459.5,3459.4,11.89167468]
[1762554481504,1.338104,3459.5,3459.4,9.001]
[1762554481796,1.338104,3459.5,3459.4,6.6937]
[1762554482012,1.338104,3459.5,3459.3,0.001]
[1762554482013,0.549504,3459.4,3459.3,0.001]
[1762554482215,1.196604,3459.4,3459.3,0.001]
[1762554483130,1.22550671,3459.4,3459.3,0.001]
[1762554483694,1.196604,3459.4,3459.3,0.001]
[1762554483916,1.66486447,3459.4,3459.3,0.001]
[1762554484119,8.85825115,3459.4,3459.3,0.001]
[1762554484840,5.96757647,3459.4,3459.3,0.001]
[1762554486132,2.92457647,3459.4,3459.3,0.001]
[1762554486334,2.78057647,3459.4,3459.3,0.001]
[1762554487731,2.78057647,3459.4,3459.3,2.89175824]
[1762554488038,2.312316,3459.4,3459.3,0.001]
[1762554489438,5.355316,3459.4,3459.3,0.001]
[1762554489636,8.24599068,3459.4,3459.3,0.001]
[1762554491753,5.355316,3459.4,3459.3,0.001]
[1762554491958,6.46915175,3459.4,3459.3,0.001]
[1762554492255,9.35982643,3459.4,3459.3,0.001]
[1762554495057,6.33934581,3459.2,3459.1,0.001]
[1762554495221,8.05805781,3459.2,3459.1,0.001]
[1762554495418,9.90616583,3459.2,3459.1,0.001]
[1762554496017,10.02192114,3459.2,3459.1,0.001]
[1762554496856,9.90616583,3459.2,3459.1,0.001]
[1762554504970,6.86316583,3459.2,3459.1,0.001]
[1762554505265,1.37930802,3459.2,3459.1,0.4678]
[1762554505428,0.405504,3459.3,3459.1,0.4678]
[1762554505790,1.259712,3459.3,3459.1,0.4678]
[1762554505941,1.261712,3459.4,3459.1,0.4678]
[1762554506146,1.665216,3459.3,3459.1,0.4678]
[1762554506559,2.89267726,3459.4,3459.2,0.4668]
[1762554506560,0.002,3459.4,3459.2,0.4668]
[1762554506863,0.002,3459.4,3459.1,0.4904]
[1762554506864,0.6056,3459.2,3459.1,0.001]
[1762554507077,1.011104,3459.2,3459.1,0.001]
[1762554507363,2.270816,3459.2,3459.1,0.001]
[1762554507570,4.75444263,3459.2,3459.1,0.001]
[1762554507732,6.48295463,3459.2,3459.1,0.001]
[1762554509937,6.01415463,3459.2,3459.1,0.001]
[1762554510442,6.48295463,3459.2,3459.1,0.001]
[1762554512377,6.01415463,3459.2,3459.1,0.001]
[1762554513081,5.55255463,3459.2,3459.1,0.461]
[1762554513262,2.25620882,3459.2,3459.1,0.461]
[1762554513644,4.29455381,3459.2,3459.1,0.461]
[1762554513840,4.70005781,3459.2,3459.1,0.461]
[1762554514057,4.70005781,3459.2,3459.1,0.9247]
[1762554514259,4.70005781,3459.2,3459.1,0.461]
[1762554515186,4.70005781,3459.2,3459.1,0.9247]
[1762554515642,1.403712,3459.2,3459.1,0.9247]
[1762554515838,1.259712,3459.2,3459.1,0.9247]
[1762554516079,1.665216,3459.2,3459.1,0.9247]
[1762554517865,1.665216,3459.2,3459.1,3.81562538]
[1762554518067,1.665216,3459.2,3459.1,0.9247]
[1762554522174,1.665216,3459.2,3459.1,3.81562538]
[1762554522389,1.665216,3459.2,3459.1,4.48659677]
[1762554522587,1.665216,3459.2,3459.1,3.81562538]
[1762554523887,1.665216,3459.2,3459.1,0.9247]
[1762554524258,1.665216,3459.2,3459.1,3.81562538]
[1762554524769,1.665216,3459.2,3459.1,0.9247]
[1762554525764,1.665216,3459.2,3459.1,0.461]
[1762554525986,1.665216,3459.2,3459.1,0.9549]
[1762554526285,1.665216,3459.2,3459.1,3.84582538]
[1762554528796,1.665216,3459.2,3459.1,0.9549]
[1762554529185,1.665216,3459.2,3459.1,3.84582538]
[1762554532687,0.405504,3459.2,3459.1,3.84582538]
[1762554532874,0.405504,3459.2,3459.1,0.9549]
[1762554536101,3.29634581,3459.2,3459.1,0.001]
[1762554536272,4.43314843,3459.2,3459.1,0.001]
[1762554537067,4.88614843,3459.2,3459.1,0.001]
[1762554537272,6.14586043,3459.2,3459.1,0.001]
[1762554537487,6.11695772,3459.2,3459.1,0.001]
[1762554538619,5.66395772,3459.2,3459.1,0.001]
[1762554538795,5.69286043,3459.2,3459.1,0.001]
[1762554538999,5.66395772,3459.2,3459.1,0.001]
[1762554539504,6.14586043,3459.2,3459.1,0.001]
[1762554539820,6.11695772,3459.2,3459.1,0.001]
[1762554542189,5.17825772,3459.2,3459.1,0.5]
[1762554542702,5.17825772,3459.2,3459.1,0.001]
[1762554543892,5.20716043,3459.2,3459.1,0.001]
[1762554544524,5.20716043,3459.2,3459.1,0.5]
[1762554544688,1.88191191,3459.2,3459.1,0.5]
[1762554545023,0.002,3459.3,3459.1,0.9661]
[1762554545224,0.407504,3459.3,3459.2,0.499]
[1762554545387,0.407504,3459.3,3459.2,0.9651]
[1762554550996,0.407504,3459.3,3459.2,3.85594181]
[1762554551202,0.002,3459.3,3459.2,14.64506705]
[1762554551514,0.002,3459.3,3459.2,9.40486905]
[1762554553122,0.002,3459.3,3459.2,15.02388905]
[1762554553691,0.002,3459.3,3459.2,13.68277305]
[1762554553897,0.002,3459.3,3459.2,6.63010105]
[1762554554226,0.002,3459.3,3459.2,11.44276005]
[1762554554616,0.002,3459.3,3459.2,7.73835705]
[1762554556328,0.261504,3459.5,3459.4,3.38967468]
[1762554556537,0.261504,3459.5,3459.4,4.38764257]
[1762554556701,0.261504,3459.5,3459.4,3.85577468]
[1762554557325,0.261504,3459.5,3459.4,3.38967468]
[1762554557714,0.261504,3459.5,3459.4,3.85577468]
[1762554562133,0.261504,3459.5,3459.4,3.38967468]
[1762554562337,0.261504,3459.5,3459.4,3.85577468]
[1762554562509,0.261504,3459.5,3459.4,4.59801925]
[1762554562709,0.161504,3459.5,3459.4,4.59801925]
[1762554565339,0.405504,3459.5,3459.4,4.59801925]
[1762554565543,0.405504,3459.5,3459.4,3.85577468]
[1762554565722,0.405504,3459.5,3459.4,3.38967468]
[1762554566444,0.405504,3459.5,3459.4,3.85577468]
[1762554568175,0.405504,3459.5,3459.4,3.38967468]
[1762554571769,0.855904,3459.5,3459.4,0.499]
[1762554571966,0.405504,3459.4,3459.1,0.001]
[1762554572157,0.405504,3459.2,3459.1,0.001]
[1762554572358,0.883304,3459.2,3459.1,0.001]
[1762554572567,1.334204,3459.2,3459.1,0.001]
[1762554572748,2.593916,3459.2,3459.1,0.001]
[1762554572947,5.74703968,3459.2,3459.1,0.001]
[1762554573150,5.77594239,3459.2,3459.1,0.001]
[1762554577651,2.40529787,3459.2,3459.1,0.001]
[1762554577852,5.74703968,3459.2,3459.1,0.001]
[1762554578179,2.85619787,3459.2,3459.1,0.001]
[1762554580347,5.74703968,3459.2,3459.1,0.001]
[1762554582480,2.85619787,3459.2,3459.1,0.001]
[1762554582686,5.74703968,3459.2,3459.1,0.001]
[1762554584157,2.40529787,3459.2,3459.1,0.001]
[1762554584360,2.85969787,3459.2,3459.1,0.001]
[1762554585789,0.405504,3459.2,3459.1,0.001]
[1762554585966,0.405504,3459.3,3459.1,0.4812]
[1762554586180,0.405504,3459.3,3459.1,0.9457]
[1762554586473,0.002,3459.5,3459.1,0.9457]
[1762554586474,1.667216,3459.5,3459.2,0.4802]
[1762554587959,0.002,3459.5,3459.4,0.4802]
[1762554590569,0.002,3459.5,3459.4,4.21902581]
[1762554590776,0.407504,3459.5,3459.4,4.21902581]
[1762554592992,0.002,3459.5,3459.4,4.21902581]
[1762554593197,0.407504,3459.5,3459.4,4.21902581]
[1762554600779,0.002,3459.5,3459.4,4.21902581]
[1762554600981,0.002,3459.5,3459.4,0.38365113]
[1762554601179,0.405504,3459.3,3459.1,0.001]
[1762554601420,0.405504,3459.3,3459.2,2.89084181]
[1762554601585,0.405504,3459.3,3459.1,2.89190845]
[1762554602122,0.405504,3459.3,3459.1,0.001]
[1762554602279,1.388004,3459.2,3459.1,0.001]
[1762554603081,5.99553186,3459.2,3459.1,0.001]
[1762554603281,5.96662915,3459.2,3459.1,0.001]
[1762554606632,5.96662915,3459.2,3458.9,0.001]
[1762554606633,3.29651296,3459.0,3458.9,0.001]